Cogmind - Beta 15 @@@ ROGUE MODE // 2025.07.30 @ 14:33:31 Player: Yam Yam Result: Destroyed by G-34 Mercenary with Small Laser Performance ------------- Evolutions (1) 500 Regions Visited (2) 400 Robots Destroyed (19) 95 Value Destroyed (591) 591 Prototype IDs (0) 0 Alien Tech Used (0) 0 Bonus (0) 0 TOTAL SCORE: 1586 Bonus ------- None Cogmind --------- Core Integrity 0/400 Matter 5/300 Energy 185/185 System Corruption 0% Temperature Cool (6) Movement Flying (195) Ox2 Location -9/Materials Parts ------- > --- POWER (2) -------- Light Ion Engine Light Nuclear Core > --- PROPULSION (3) --- Cesium-ion Thruster > --- UTILITY (2) ------ Particle Charger > --- WEAPON (2) ------- (None) > --- INVENTORY (5) ---- Particle Charger Beam Cannon Autogun Autogun Peak State ------------ > --- POWER ------------ Light Ion Engine Light Ion Engine > --- PROPULSION ------- Cesium-ion Thruster Cesium-ion Thruster Cesium-ion Thruster > --- UTILITY ---------- Large Storage Unit Targeting Computer > --- WEAPON ----------- Light Assault Rifle Grenade Launcher > --- INVENTORY -------- Cesium-ion Thruster Particle Charger Beam Cannon Light Assault Rifle Shotgun [Rating: 16] Favorites ----------- Power Light Ion Engine Engine Light Ion Engine Power Core Light Nuclear Core Propulsion Wheel Treads Light Treads Wheel Wheel Flight Unit Cesium-ion Thruster Utility Targeting Computer Device Particle Charger Storage Large Storage Unit Processor Targeting Computer Weapon Light Assault Rifle Ballistic Gun Light Assault Rifle Launcher Grenade Launcher Build | -11 -10 -9 ------- Run | Yrd Mat Mat Slots Evolved 2 | . . 2 Power 1 | . . 1 Propulsion 1 | . . 1 Utility . | . . . Weapon . | . . . Parts Attached 26 | 5 4 17 Power 6 | 1 . 5 Engine 5 | 1 . 4 Core 1 | . . 1 Reactor . | . . . Propulsion 11 | 2 1 8 Treads 2 | . . 2 Leg . | . . . Wheel 5 | 2 1 2 Hover . | . . . Flight 4 | . . 4 Utility 4 | . 2 2 Device 1 | . . 1 Storage 1 | . . 1 Processor 2 | . 2 . Hackware . | . . . Protection . | . . . Artifact . | . . . Weapon 5 | 2 1 2 Energy Gun . | . . . Energy Cannon . | . . . Ballistic Gun 3 | 2 . 1 Ballistic Cannon . | . . . Launcher 2 | . 1 1 Special Weapon . | . . . Impact Weapon . | . . . Slashing Weapon . | . . . Piercing Weapon . | . . . Special Melee Weapon . | . . . Unidentified Prototypes . | . . . Parts Lost 13 | . . 13 Power 4 | . . 4 Propulsion 3 | . . 3 Utility 1 | . . 1 Weapon 5 | . . 5 Highest Loss Streak 9 | . . 9 To Critical Strikes . | . . . Average Backups 4 | 1 4 6 Power . | . . . Propulsion . | . 1 . Utility 1 | . . 2 Weapon 2 | . 2 3 Tool/Special . | . . . Unused Backups 6 | . 1 5 Power . | . . . Propulsion . | . . . Utility 2 | . . 2 Weapon 4 | . 1 3 Tool/Special . | . . . Average Slot Usage (%) 81 | . 97 73 Engine 13 | . 14 13 Treads 2 | . . 3 Wheel 12 | . 28 5 Flight 7 | . . 11 Storage 4 | . . 6 Processor 15 | . 25 11 Ballistic Gun 16 | . 24 12 Launcher 6 | . 3 7 Peak Build Rating 16 | 5 7 16 Average Rating 8 | 4 6 9 On Entrance 4 | . 5 7 Naked Turns 2 | . . 2 Heaviest Build 32 | 5 7 32 Greatest Support 40 | 20 20 40 Greatest Overweight (x) 10 | . . 10 Average Overweight (x) . | . . 1 Largest Inventory Capacity 15 | 5 5 15 Average Capacity 8 | 5 5 11 Most Carried 9 | 3 5 9 Average Carried 5 | 1 4 6 Final Capacity 5 | 5 5 5 Final Carried 5 | 3 5 4 Class Distribution -------------------- 100% | Mutant Dominant Class ---------------- Mutant | -10/Materials Mutant | -9/Materials Resources | -11 -10 -9 ----------- Run | Yrd Mat Mat Matter Collected 462 | 264 21 177 Remotely . | . . . Salvage Created 461 | 35 21 405 Parts 27 | 1 1 25 Haulers Intercepted . | . . . Recyclers Shooed . | . . . Parts Field Recycled . | . . . Retrieved Matter . | . . . Parts Self-Destructed . | . . . Prevented . | . . . Kills | -11 -10 -9 ------- Run | Yrd Mat Mat Combat Hostiles Destroyed 14 | 1 . 13 Guns 6 | 1 . 5 AOE 8 | . . 8 Classes Destroyed 5 | 1 1 3 Builder 2 | . . 2 Mechanic 1 | . . 1 Watcher 2 | . 1 1 Grunt 13 | 1 . 12 Sentry 1 | . . 1 Best Kill Streak 6 | 1 1 6 Combat Bots Only 5 | 1 . 5 Max Kills in Single Turn 2 | 1 1 2 Gunslinging 1 | . . 1 Exploded 2 | . . 2 Melee . | . . . Uniques/NPCs Destroyed . | . . . Combat | -11 -10 -9 -------- Run | Yrd Mat Mat Hostile Shots Fired 144 | 8 . 136 Missed 44 | 3 . 41 Hits 100 | 5 . 95 Projectile 100 | 5 . 95 Damage Taken 1360 | 53 33 1274 Core 428 | 22 . 406 Absorbed by Shields . | . . . Core Remaining (%) 91 | 91 91 . Volleys Fired 61 | 7 12 42 Largest 2 | 2 2 2 Hottest 56 | 40 40 56 Shots Fired 109 | 14 24 71 Gun 87 | 14 24 49 Cannon . | . . . Launcher 22 | . . 22 Special . | . . . Kinetic 87 | 14 24 49 Thermal . | . . . Explosive 22 | . . 22 Electromagnetic . | . . . Robot Hit Streak 9 | 5 7 9 Robot Miss Streak 5 | 1 5 2 Penetration Max . | . . . Secondary Targets 1 | . . 1 Max Gunslinging Chain 1 | . . 1 Shots Hit Robots 72 | 11 8 53 Core Hits 43 | 3 3 37 Critical Kills 1 | . . 1 Critical Parts Destroyed . | . . . Critical Strikes 1 | . . 1 Destroy 1 | . . 1 Melee Attacks . | . . . Impact . | . . . Slashing . | . . . Piercing . | . . . Sneak Attacks . | . . . Combat Hostiles . | . . . Follow-up Attacks . | . . . Damage Inflicted 1918 | 107 70 1741 Guns 606 | 107 70 429 Cannons . | . . . Explosions 1311 | . . 1311 Melee . | . . . Ramming 1 | . . 1 Kinetic 606 | 107 70 429 Thermal . | . . . Explosive 1311 | . . 1311 Electromagnetic . | . . . Impact . | . . . Slashing . | . . . Piercing . | . . . Highest Corruption . | . . . Average Corruption . | . . . Corruption Purged . | . . . Corruption Blocked . | . . . Overload Shots . | . . . Overflow Damage 28 | . . 28 Projectiles . | . . . Explosions 28 | . . 28 Melee . | . . . Knockbacks . | . . . Impact . | . . . Kinetic . | . . . Secondary . | . . . Self-Inflicted Damage 140 | . . 140 Shots 6 | . . 6 Rammed 2 | . . 2 Targets Rammed 2 | . . 2 Kicked . | . . . Crushed . | . . . Highest Temperature 133 | 12 . 133 Average Temperature 44 | 7 . 50 Received Heat Transfer 651 | 30 . 621 Siege Activations . | . . . Martial Activations . | . . . Shielding Activations . | . . . Robots Disrupted . | . . . Combat Hostiles . | . . . Robots Corrupted . | . . . Combat Hostiles . | . . . Parts Fried . | . . . Impact Corruptions . | . . . Robots Melted . | . . . Combat Hostiles . | . . . Parts Melted . | . . . Heat Transferred . | . . . Parts Sabotaged . | . . . Parts Stolen . | . . . Parts Stripped . | . . . Power Chain Reactions . | . . . Alert | -11 -10 -9 ------- Run | Yrd Mat Mat Maximum Alert Level 1 | . . 1 Low Security (%) 98 | 100 100 97 Level 1 1 | . . 2 Level 2 . | . . . Level 3 . | . . . Level 4 . | . . . Level 5 . | . . . High Security . | . . . Max Security . | . . . Peak Influence 218 | 20 15 218 Initial . | . . . Average 35 | 4 . 59 Influence Increases 534 | 20 22 492 Destroy 0b10 Robot/C 280 | 20 . 260 Destroy 0b10 Robot/NC 25 | . 5 20 Destroy Leader 54 | . 2 52 Disable Machine 15 | . . 15 Destroy Structure 70 | . . 70 Lose Combat Pursuer 90 | . 15 75 Influence Decreases 352 | 20 22 310 Time Decay 222 | 20 22 180 Lost Part 130 | . . 130 Squads Dispatched 2 | . . 2 Investigation . | . . . Extermination . | . . . Reinforcement 2 | . . 2 Assault . | . . . Garrison . | . . . Intercept . | . . . Searches Triggered . | . . . Construction Impeded 2 | . . 2 Haulers Reinforced . | . . . Active Scanning Responses . | . . . Cargo Convoy Interrupts . | . . . Stealth | -11 -10 -9 --------- Run | Yrd Mat Mat Distress Signals 1 | . 1 . Communications Jammed . | . . . Distress Signals . | . . . Times Spotted 30 | 1 4 25 Peak Tracking Total 5 | 1 2 5 Tactical Retreats 4 | . 1 3 Traps | -11 -10 -9 ------- Run | Yrd Mat Mat Traps Triggered 1 | . 1 . Indirectly . | . . . Trap Hack Attempts . | . . . Triggered . | . . . Disarmed . | . . . Reprogrammed . | . . . Reused . | . . . Traps Extracted . | . . . Installed . | . . . Triggered . | . . . Machines | -11 -10 -9 ---------- Run | Yrd Mat Mat Machines Disabled 1 | . . 1 Max in Single Turn 1 | . . 1 Machines Repaired . | . . . Machines Dismantled . | . . . Machines Sabotaged . | . . . Overloaded Fab Kills . | . . . Hacking | -11 -10 -9 --------- Run | Yrd Mat Mat Machines Accessed . | . . . Terminals . | . . . Fabricators . | . . . Repair Stations . | . . . Recycling Units . | . . . Scanalyzers . | . . . Garrison Access . | . . . Total Hacks . | . . . Successful . | . . . Failed . | . . . Catastrophic . | . . . Database Lockouts . | . . . Manual . | . . . Terminals . | . . . Fabricators . | . . . Repair Stations . | . . . Recycling Units . | . . . Scanalyzers . | . . . Garrison Access . | . . . Terminal Hacks . | . . . Fabricator Hacks . | . . . Repair Station Hacks . | . . . Recycling Unit Hacks . | . . . Scanalyzer . | . . . Garrison Access Hacks . | . . . Unauthorized Hacks . | . . . Terminals . | . . . Fabricators . | . . . Repair Stations . | . . . Recycling Units . | . . . Scanalyzers . | . . . Garrison Access . | . . . Data Cores Recovered . | . . . Used . | . . . Hacking Detections . | . . . Full Trace Events . | . . . Feedback Events . | . . . Feedback Blocked . | . . . Robot Schematics Acquired . | . . . Robots Built . | . . . Authchips . | . . . Time . | . . . Total Robot Build Rating . | . . . Part Schematics Acquired . | . . . Parts Built . | . . . Authchips . | . . . Time . | . . . Total Part Build Rating . | . . . Parts Repaired . | . . . Time . | . . . Parts Recycled . | . . . Recycled Matter . | . . . Retrieved Matter . | . . . Retrieved Components . | . . . Parts Scanalyzed . | . . . Part Schematics Acquired . | . . . Parts Damaged . | . . . Bothacking | -11 -10 -9 ------------ Run | Yrd Mat Mat Used RIF Installer . | . . . Robots Hacked . | . . . Non-combat . | . . . Combat . | . . . Robot Hacks Applied . | . . . Relay Couplers Released . | . . . Fabnet Peak Effective % . | . . . Robots Rewired . | . . . Allies Hacked . | . . . Hacks Repelled . | . . . Allies | -11 -10 -9 -------- Run | Yrd Mat Mat Total Allies . | . . . Largest Group . | . . . Highest-Rated Group . | . . . Highest-Rated Ally . | . . . Total Orders . | . . . Ally Attacks . | . . . Total Damage . | . . . Kills . | . . . Allies Corrupted . | . . . Allies Melted . | . . . Intel | -11 -10 -9 ------- Run | Yrd Mat Mat Active Infowar (turns) . | . . . Robot Analysis Total . | . . . Derelict Logs Recovered . | . . . Drone Launches . | . . . Drone Recoveries . | . . . Exploration | -11 -10 -9 ------------- Run | Yrd Mat Mat Turns Passed 1023 | 130 286 607 Spaces Moved 696 | 69 304 323 Core 75 | 18 . 57 Treads 63 | . . 63 Legs . | . . . Wheels 417 | 51 304 62 Hover . | . . . Flight 141 | . . 141 Fastest Speed 29 | 50 80 29 Average Speed 105 | 72 80 136 Slowest Speed 550 | 80 80 550 Overloaded Moves . | . . . Propulsion Burnouts . | . . . Robots Hopped . | . . . Potential Cave-ins . | . . . Cave-ins Triggered . | . . . Exploration Rate (%) 20 | 6 34 21 Regions Visited 2 Branch Regions . Pre-discovered Areas . | . . . Known Exits Taken . | . . . Unknown Exits Taken 2 | 1 1 . Scrap Searched . | . . . Spaces Dug . | . . . Terrain Destroyed 101 | . . 101 Melee . | . . . Projectile . | . . . AOE 101 | . . 101 Terrain Rammed . | . . . Walls Destroyed . | . . . Machines Disabled . | . . . Actions | -11 -10 -9 --------- Run | Yrd Mat Mat Total 886 | 137 326 423 Wait 61 | 49 . 12 Move 694 | 68 303 323 Hop . | . . . Pick Up 32 | 8 5 19 Fast Attach 2 | . 1 1 Attach 19 | 5 1 13 Detach . | . . . Swap 6 | . 2 4 Drop 9 | . 2 7 Fire 61 | 7 12 42 Melee . | . . . Ram 2 | . . 2 Kick . | . . . Crush . | . . . Escape Stasis . | . . . Rewire . | . . . Trap . | . . . Miscellaneous . | . . . Route ------- -11/Scrapyard -10/Materials (discovered 2 exits: [*Mat] / [*Min]) -9/Materials History --------- Turn | Location | Event 2 | -11/Scrapyard | Met Revision 17 44 | -11/Scrapyard | Discovered new exit (range 8) 131 | -11/Scrapyard | Entered Materials 206 | -10/Materials | Discovered new exit (range 11) 223 | -10/Materials | Discovered new exit (range 16) 310 | -10/Materials | Build established: Mutant 417 | -10/Materials | Entered another Materials area 417 | -9/Materials | Evolved 2 slots: Power x1, Propulsion x1 874 | -9/Materials | Lost 9 parts (3p3n1u2w) 916 | -9/Materials | Core integrity fell below 50% 985 | -9/Materials | Core integrity fell below 20% 990 | -9/Materials | Released all parts (1) 1024 | -9/Materials | Destroyed by G-34 Mercenary with Small Laser Last Messages --------------- U-05 Engineer lays Concrete. U-05 Engineer builds a Wall. U-05 Engineer lays Concrete. U-05 Engineer builds a Wall. U-05 Engineer destroyed. Shotgun destroyed. Destroyed Shotgun. U-05 Engineer lays Concrete. Rocket Launcher destroyed. U-05 Engineer lays Concrete. The unstable cave ceiling collapses. U-05 Engineer lays Concrete. Acquired 16 matter. U-05 Engineer lays Concrete. U-05 Engineer builds a Wall. Released Lrg. Storage Unit. Acquired Lgt. Ion Engine. U-05 Engineer lays Concrete. U-05 Engineer builds a Wall. Acquired Autogun. Map ----- +----------------------------------------------------+ | | | | | | | | | | | | | | | | | | | | | | | | | | | | | | | | | ?????????????????????????????????????????????????? | | ?????????????????????????????????????????????????? | | ?????????????????????????????????????????????????? | | ?????????????????????????????????????????????????? | | ????????????????################?????????????????? | | ????????????????# # #?????????????????? | | ????????????????# # #?????????????????? | | ????????????????# # #?????????????????? | | ????????????????+ + #?????????????????? | | ????????????????# ##@ [ #?????????????????? | | ??????????????### ## g #?????????????????? | | ??????????????# ###/#####?????????????????? | | ############### #?#g#?????????????????????? | | ###/#######???????????????? | | ## #???????????????? | | ## #???????????????? | | ################ ## #???????????????? | | ???????????????# ## #???????????????? | | ???????????????+ # #???????????????? | | ???????????????# ^ + #???????????????? | | ???????????????# # #???????????????? | | ???????????????##^^ =# #???????????????? | | ????????????????# # #???????????????? | | ????????????????# ^ ### #####???????????????? | | ???????????????## [ #???????????????? | | ??????????????### [[[ = = #???????????????? | | ??????????????# # ! [!! ##??????????????? | | ??????????????### = = #????????????? | | ??????????????# # ## ## #????????????? | | ?????????????# ## ! * ##?? #????????????? | | ?????????????## #! = # ##???????????????????? | | ??????????????# # #### # ##????????????????????? | | ??????????????# # # #????????????????????? | | ??????????????### # #????????????????????? | +----------------------------------------------------+ Best States ------------- Heat Dissipation 28 Energy Generation 19 Energy Capacity 250 Matter Stores 300 Matter Capacity 300 Sight Range 16 Terrain Scan Density 10 Evasion (%) 50 Targeting Accuracy 10 Recoil Reduction 2 Particle Charging 15 Item Schematics ----------------- None Robot Schematics ------------------ None Fabricated ------------ Nothing Repaired ---------- Nothing Alien Tech Used ----------------- None Achievements -------------- Oops Challenges ------------ None Game ------ Seed MiningArcsightSegregator Manual? 0 Play Time 00:17:12 Cumulative 1.2 hours Start 2025.07.30 @ 14:05:17 End 2025.07.30 @ 14:33:31 Sessions 1 Manual Loads 0 Difficulty Rogue Special Mode None Game No. 2 Rogue 2 Adventurer 0 Explorer 0 Win Type - Total 0 Types 0/0/0/0/0/0/0/0/0/0 Lore% 2 Gallery% 4 Achievement% 5 Wizard Run 0 Options --------- Layout 1 ASCII 0 Keyboard 0 Movement Mouse Keybinds 0 Fullscreen 1 Font 24/Smallcaps Map View 50x35 Zoom Use 0% Tactical HUD 0 Map Filters NONE Filters NONE Steam 1 RUN: 80e49123-c1ef-4e43-b724-43f0b3323bde